[Event "Titled Tuesday Blitz April 11 Late 2023"]
[White "Marcziter, Dmitrii"]
[Black "Shahade, Michael"]
[WhiteFideId "13900765"]
[BlackFideId "2001870"]
[WhiteElo "2162"]
[BlackElo "2239"]
[Result "1-0"]
[Round "03"]
[TimeControl "180+2"]
[Date "2023.04.11"]
[WhiteClock "0:01:27"]
[BlackClock "0:00:26"]

1. d4 {[%clk 0:03:00]}  Nf6 {[%clk 0:02:59]} 2. c4 {[%clk 0:03:00]}  e6 {[%clk 0:02:59]} 3. Nf3 {[%clk 0:03:00]}  Bb4+ {[%clk 0:02:59]} 4. Nbd2 {[%clk 0:02:59]}  d5 {[%clk 0:02:58]} 5. a3 {[%clk 0:02:56]}  Bxd2+ {[%clk 0:02:54]} 6. Nxd2 {[%clk 0:02:47]}  a5 {[%clk 0:02:48]} 7. b3 {[%clk 0:02:43]}  c5 {[%clk 0:02:39]} 8. e3 {[%clk 0:02:37]}  cxd4 {[%clk 0:02:35]} 9. exd4 {[%clk 0:02:37]}  dxc4 {[%clk 0:02:28]} 10. Nxc4 {[%clk 0:02:36]}  Nc6 {[%clk 0:02:09]} 11. Bb2 {[%clk 0:02:30]}  O-O {[%clk 0:02:06]} 12. Be2 {[%clk 0:02:29]}  b5 {[%clk 0:01:57]} 13. Ne5 {[%clk 0:02:24]}  Qb6 {[%clk 0:01:54]} 14. Nxc6 {[%clk 0:02:19]}  Qxc6 {[%clk 0:01:51]} 15. Bf3 {[%clk 0:02:19]}  Nd5 {[%clk 0:01:50]} 16. Rc1 {[%clk 0:02:18]}  Qd6 {[%clk 0:01:44]} 17. O-O {[%clk 0:02:17]}  Bb7 {[%clk 0:01:38]} 18. Rc5 {[%clk 0:02:16]}  b4 {[%clk 0:01:32]} 19. a4 {[%clk 0:02:12]}  Rfc8 {[%clk 0:01:27]} 20. Qc2 {[%clk 0:02:08]}  Rxc5 {[%clk 0:00:59]} 21. dxc5 {[%clk 0:02:05]}  Qc6 {[%clk 0:00:56]} 22. Rc1 {[%clk 0:01:59]}  Rc8 {[%clk 0:00:54]} 23. Qc4 {[%clk 0:01:55]}  Ba6 {[%clk 0:00:48]} 24. Qg4 {[%clk 0:01:52]}  g6 {[%clk 0:00:47]} 25. Qd4 {[%clk 0:01:48]}  f6 {[%clk 0:00:42]} 26. h4 {[%clk 0:01:38]}  Bb7 {[%clk 0:00:34]} 27. Qg4 {[%clk 0:01:30]}  f5 {[%clk 0:00:26]} 28. Qd4 {[%clk 0:01:27]} 1-0


[Site "https://www.chess.com"]

[Event "Titled Tuesday Blitz April 11 Late 2023"]
[White "Bach, Matthias"]
[Black "Joubert, Dantelle"]
[WhiteFideId "4603168"]
[BlackFideId "14310813"]
[WhiteElo "2130"]
[BlackElo "1507"]
[Result "1-0"]
[Round "03"]
[TimeControl "180+2"]
[Date "2023.04.11"]
[WhiteClock "0:00:36"]
[BlackClock "0:00:03"]

1. d4 {[%clk 0:02:56]}  Nf6 {[%clk 0:02:58]} 2. c4 {[%clk 0:02:55]}  e6 {[%clk 0:02:56]} 3. Nc3 {[%clk 0:02:55]}  Bb4 {[%clk 0:02:55]} 4. Bg5 {[%clk 0:02:55]}  c5 {[%clk 0:02:51]} 5. d5 {[%clk 0:02:55]}  exd5 {[%clk 0:02:49]} 6. cxd5 {[%clk 0:02:55]}  d6 {[%clk 0:02:39]} 7. e3 {[%clk 0:02:52]}  O-O {[%clk 0:02:34]} 8. Bd3 {[%clk 0:02:51]}  h6 {[%clk 0:02:33]} 9. Bh4 {[%clk 0:02:50]}  Nbd7 {[%clk 0:02:32]} 10. Nf3 {[%clk 0:02:49]}  Qa5 {[%clk 0:02:32]} 11. O-O {[%clk 0:02:47]}  Bxc3 {[%clk 0:02:30]} 12. bxc3 {[%clk 0:02:47]}  Nxd5 {[%clk 0:02:20]} 13. Bh7+ {[%clk 0:02:41]}  Kxh7 {[%clk 0:02:19]} 14. Qxd5 {[%clk 0:02:41]}  Qc7 {[%clk 0:02:05]} 15. Be7 {[%clk 0:02:37]}  Re8 {[%clk 0:01:40]} 16. Bxd6 {[%clk 0:02:29]}  Qc6 {[%clk 0:01:39]} 17. Qxf7 {[%clk 0:02:10]}  Nf6 {[%clk 0:01:36]} 18. Qc7 {[%clk 0:01:40]}  Qxc7 {[%clk 0:01:34]} 19. Bxc7 {[%clk 0:01:40]}  Nd5 {[%clk 0:01:32]} 20. Bd6 {[%clk 0:01:37]}  b6 {[%clk 0:01:23]} 21. c4 {[%clk 0:01:35]}  Nc3 {[%clk 0:01:15]} 22. Rfe1 {[%clk 0:01:34]}  Bb7 {[%clk 0:01:14]} 23. Bg3 {[%clk 0:01:29]}  Bxf3 {[%clk 0:01:00]} 24. gxf3 {[%clk 0:01:28]}  Rad8 {[%clk 0:01:00]} 25. a4 {[%clk 0:01:23]}  Rd2 {[%clk 0:00:55]} 26. Kf1 {[%clk 0:01:19]}  Red8 {[%clk 0:00:52]} 27. a5 {[%clk 0:01:15]}  b5 {[%clk 0:00:48]} 28. cxb5 {[%clk 0:01:12]}  Nxb5 {[%clk 0:00:47]} 29. a6 {[%clk 0:01:12]}  c4 {[%clk 0:00:42]} 30. Ra5 {[%clk 0:01:07]}  R8d5 {[%clk 0:00:29]} 31. e4 {[%clk 0:01:05]}  Rh5 {[%clk 0:00:22]} 32. Rb1 {[%clk 0:00:58]}  c3 {[%clk 0:00:19]} 33. Bf4 {[%clk 0:00:45]}  Rb2 {[%clk 0:00:17]} 34. Rc1 {[%clk 0:00:41]}  c2 {[%clk 0:00:12]} 35. Ke2 {[%clk 0:00:37]}  Nd4+ {[%clk 0:00:05]} 36. Kd3 {[%clk 0:00:38]}  Rxa5 {[%clk 0:00:04]} 37. Kxd4 {[%clk 0:00:38]}  Ra3 {[%clk 0:00:03]} 38. Be3 {[%clk 0:00:36]} 1-0


[Site "https://www.chess.com"]

[Event "Titled Tuesday Blitz April 11 Late 2023"]
[White "Nakamura, Hikaru"]
[Black "Hansen, Eric"]
[WhiteFideId "2016192"]
[BlackFideId "2606771"]
[WhiteElo "2885"]
[BlackElo "2561"]
[Result "1/2-1/2"]
[Round "04"]
[TimeControl "180+2"]
[Date "2023.04.11"]
[WhiteClock "0:00:03"]
[BlackClock "0:00:14"]

1. c4 {[%clk 0:03:00]}  e5 {[%clk 0:02:46]} 2. Nc3 {[%clk 0:02:59]}  Bb4 {[%clk 0:02:46]} 3. g3 {[%clk 0:02:55]}  Bxc3 {[%clk 0:02:44]} 4. bxc3 {[%clk 0:02:52]}  Nc6 {[%clk 0:02:43]} 5. Bg2 {[%clk 0:02:51]}  d6 {[%clk 0:02:42]} 6. d3 {[%clk 0:02:50]}  Nge7 {[%clk 0:02:42]} 7. Nf3 {[%clk 0:02:45]}  O-O {[%clk 0:02:41]} 8. O-O {[%clk 0:02:45]}  f5 {[%clk 0:02:34]} 9. a4 {[%clk 0:02:36]}  a5 {[%clk 0:02:31]} 10. Ne1 {[%clk 0:02:32]}  b6 {[%clk 0:02:30]} 11. f4 {[%clk 0:02:30]}  exf4 {[%clk 0:02:18]} 12. Bxf4 {[%clk 0:02:21]}  Qd7 {[%clk 0:02:17]} 13. Nc2 {[%clk 0:02:19]}  Bb7 {[%clk 0:02:14]} 14. Nd4 {[%clk 0:02:14]}  Nd8 {[%clk 0:02:09]} 15. Bh3 {[%clk 0:02:06]}  Ne6 {[%clk 0:01:57]} 16. Bd2 {[%clk 0:02:02]}  Nxd4 {[%clk 0:01:25]} 17. cxd4 {[%clk 0:02:03]}  d5 {[%clk 0:01:26]} 18. Bg2 {[%clk 0:01:58]}  Rae8 {[%clk 0:01:18]} 19. e3 {[%clk 0:01:34]}  Ba8 {[%clk 0:01:18]} 20. Qb3 {[%clk 0:01:12]}  Kh8 {[%clk 0:01:09]} 21. c5 {[%clk 0:01:07]}  bxc5 {[%clk 0:01:08]} 22. Bxa5 {[%clk 0:01:07]}  Nc6 {[%clk 0:01:03]} 23. Bd2 {[%clk 0:01:04]}  cxd4 {[%clk 0:01:00]} 24. Rae1 {[%clk 0:01:03]}  dxe3 {[%clk 0:00:51]} 25. Bxe3 {[%clk 0:01:04]}  d4 {[%clk 0:00:42]} 26. Bf4 {[%clk 0:01:04]}  h6 {[%clk 0:00:29]} 27. Qb5 {[%clk 0:00:52]}  Rb8 {[%clk 0:00:27]} 28. Qc5 {[%clk 0:00:53]}  Rf6 {[%clk 0:00:23]} 29. a5 {[%clk 0:00:40]}  Rb2 {[%clk 0:00:21]} 30. Rf2 {[%clk 0:00:38]}  Rb3 {[%clk 0:00:21]} 31. Rfe2 {[%clk 0:00:36]}  Rc3 {[%clk 0:00:20]} 32. Qd5 {[%clk 0:00:34]}  Qxd5 {[%clk 0:00:14]} 33. Bxd5 {[%clk 0:00:34]}  Bb7 {[%clk 0:00:15]} 34. Bc4 {[%clk 0:00:25]}  Rxc4 {[%clk 0:00:11]} 35. dxc4 {[%clk 0:00:26]}  Nxa5 {[%clk 0:00:12]} 36. Be5 {[%clk 0:00:24]}  Rg6 {[%clk 0:00:10]} 37. Bxd4 {[%clk 0:00:24]}  Be4 {[%clk 0:00:08]} 38. Rc1 {[%clk 0:00:23]}  Nb3 {[%clk 0:00:08]} 39. Rd1 {[%clk 0:00:20]}  Rd6 {[%clk 0:00:09]} 40. Red2 {[%clk 0:00:16]}  Nxd2 {[%clk 0:00:06]} 41. Rxd2 {[%clk 0:00:17]}  Kh7 {[%clk 0:00:04]} 42. c5 {[%clk 0:00:16]}  Rd5 {[%clk 0:00:04]} 43. Kf2 {[%clk 0:00:16]}  Kg6 {[%clk 0:00:04]} 44. Be3 {[%clk 0:00:16]}  Rxd2+ {[%clk 0:00:04]} 45. Bxd2 {[%clk 0:00:17]}  c6 {[%clk 0:00:04]} 46. h4 {[%clk 0:00:17]}  Kh5 {[%clk 0:00:04]} 47. Bc3 {[%clk 0:00:18]}  g5 {[%clk 0:00:05]} 48. hxg5 {[%clk 0:00:19]}  hxg5 {[%clk 0:00:05]} 49. Bf6 {[%clk 0:00:18]}  Kg4 {[%clk 0:00:06]} 50. Bd8 {[%clk 0:00:19]}  Bd5 {[%clk 0:00:06]} 51. Be7 {[%clk 0:00:19]}  f4 {[%clk 0:00:07]} 52. gxf4 {[%clk 0:00:20]}  Kxf4 {[%clk 0:00:06]} 53. Bd6+ {[%clk 0:00:20]}  Ke4 {[%clk 0:00:06]} 54. Kg3 {[%clk 0:00:21]}  Be6 {[%clk 0:00:06]} 55. Bf8 {[%clk 0:00:22]}  g4 {[%clk 0:00:06]} 56. Bd6 {[%clk 0:00:23]}  Kd5 {[%clk 0:00:07]} 57. Bf8 {[%clk 0:00:24]}  Kd4 {[%clk 0:00:07]} 58. Bd6 {[%clk 0:00:25]}  Bd7 {[%clk 0:00:07]} 59. Bf8 {[%clk 0:00:25]}  Ke4 {[%clk 0:00:08]} 60. Bd6 {[%clk 0:00:26]}  Ke3 {[%clk 0:00:08]} 61. Bf8 {[%clk 0:00:26]}  Be6 {[%clk 0:00:08]} 62. Bd6 {[%clk 0:00:27]}  Ke4 {[%clk 0:00:08]} 63. Bf8 {[%clk 0:00:28]}  Kf5 {[%clk 0:00:09]} 64. Bd6 {[%clk 0:00:29]}  Kg5 {[%clk 0:00:09]} 65. Bf8 {[%clk 0:00:30]}  Kg6 {[%clk 0:00:09]} 66. Bd6 {[%clk 0:00:31]}  Kf7 {[%clk 0:00:10]} 67. Kf4 {[%clk 0:00:31]}  Kf6 {[%clk 0:00:10]} 68. Kg3 {[%clk 0:00:32]}  Bd7 {[%clk 0:00:10]} 69. Kf2 {[%clk 0:00:33]}  Kf5 {[%clk 0:00:02]} 70. Kg3 {[%clk 0:00:34]}  Ke4 {[%clk 0:00:02]} 71. Kh2 {[%clk 0:00:35]}  Kf3 {[%clk 0:00:02]} 72. Bg3 {[%clk 0:00:35]}  Be6 {[%clk 0:00:03]} 73. Bd6 {[%clk 0:00:35]}  Bd5 {[%clk 0:00:04]} 74. Bg3 {[%clk 0:00:36]}  Bc4 {[%clk 0:00:05]} 75. Bd6 {[%clk 0:00:36]}  Bb5 {[%clk 0:00:06]} 76. Bg3 {[%clk 0:00:36]}  Ba6 {[%clk 0:00:07]} 77. Bc7 {[%clk 0:00:22]}  Ke4 {[%clk 0:00:07]} 78. Bb8 {[%clk 0:00:22]}  Be2 {[%clk 0:00:07]} 79. Bd6 {[%clk 0:00:23]}  Bf3 {[%clk 0:00:08]} 80. Kg3 {[%clk 0:00:23]}  Kd5 {[%clk 0:00:09]} 81. Bf8 {[%clk 0:00:24]}  Ke6 {[%clk 0:00:10]} 82. Bd6 {[%clk 0:00:24]}  Kf7 {[%clk 0:00:10]} 83. Bc7 {[%clk 0:00:25]}  Kg6 {[%clk 0:00:09]} 84. Bb6 {[%clk 0:00:26]}  Kf5 {[%clk 0:00:08]} 85. Ba7 {[%clk 0:00:26]}  Ke6 {[%clk 0:00:08]} 86. Kf4 {[%clk 0:00:26]}  Kd5 {[%clk 0:00:08]} 87. Bb6 {[%clk 0:00:26]}  Kd4 {[%clk 0:00:07]} 88. Kg3 {[%clk 0:00:27]}  Kd3 {[%clk 0:00:07]} 89. Bd8 {[%clk 0:00:27]}  Ke4 {[%clk 0:00:08]} 90. Be7 {[%clk 0:00:28]}  Kd5 {[%clk 0:00:08]} 91. Bf8 {[%clk 0:00:27]}  Ke6 {[%clk 0:00:08]} 92. Kf4 {[%clk 0:00:28]}  Kf7 {[%clk 0:00:09]} 93. Bd6 {[%clk 0:00:28]}  Kg6 {[%clk 0:00:09]} 94. Ke3 {[%clk 0:00:28]}  Kh5 {[%clk 0:00:10]} 95. Bg3 {[%clk 0:00:28]}  Kg5 {[%clk 0:00:10]} 96. Kd4 {[%clk 0:00:29]}  Kf5 {[%clk 0:00:11]} 97. Bc7 {[%clk 0:00:29]}  Bd5 {[%clk 0:00:10]} 98. Bg3 {[%clk 0:00:30]}  Ke6 {[%clk 0:00:10]} 99. Kd3 {[%clk 0:00:30]}  Kf5 {[%clk 0:00:09]} 100. Ke3 {[%clk 0:00:31]}  Bf3 {[%clk 0:00:09]} 101. Kf2 {[%clk 0:00:31]}  Ke6 {[%clk 0:00:10]} 102. Bb8 {[%clk 0:00:30]}  Kd7 {[%clk 0:00:11]} 103. Ba7 {[%clk 0:00:30]}  Kc8 {[%clk 0:00:12]} 104. Kg3 {[%clk 0:00:28]}  Kb7 {[%clk 0:00:13]} 105. Bb6 {[%clk 0:00:03]}  Ka6 {[%clk 0:00:14]} 1/2-1/2


[Site "https://www.chess.com"]

[Event "Titled Tuesday Blitz April 11 Late 2023"]
[White "Gharibyan, Mamikon"]
[Black "Vachier-Lagrave, Maxime"]
[WhiteFideId "13308300"]
[BlackFideId "623539"]
[WhiteElo "2445"]
[BlackElo "2740"]
[Result "0-1"]
[Round "04"]
[TimeControl "180+2"]
[Date "2023.04.11"]
[WhiteClock "0:00:05"]
[BlackClock "0:00:45"]

1. d4 {[%clk 0:03:00]}  Nf6 {[%clk 0:02:57]} 2. c4 {[%clk 0:03:01]}  e6 {[%clk 0:02:57]} 3. Nf3 {[%clk 0:03:00]}  d5 {[%clk 0:02:57]} 4. g3 {[%clk 0:02:55]}  Be7 {[%clk 0:02:56]} 5. Bg2 {[%clk 0:02:55]}  O-O {[%clk 0:02:56]} 6. O-O {[%clk 0:02:52]}  c6 {[%clk 0:02:57]} 7. Qc2 {[%clk 0:02:50]}  a5 {[%clk 0:02:49]} 8. Nbd2 {[%clk 0:02:46]}  b5 {[%clk 0:02:44]} 9. c5 {[%clk 0:02:39]}  Nbd7 {[%clk 0:02:37]} 10. e4 {[%clk 0:02:36]}  dxe4 {[%clk 0:02:36]} 11. Nxe4 {[%clk 0:02:36]}  Nd5 {[%clk 0:02:36]} 12. Neg5 {[%clk 0:02:12]}  g6 {[%clk 0:02:23]} 13. h4 {[%clk 0:02:10]}  Bf6 {[%clk 0:02:15]} 14. h5 {[%clk 0:02:07]}  Bg7 {[%clk 0:02:11]} 15. Re1 {[%clk 0:01:47]}  Ra7 {[%clk 0:02:08]} 16. Nxh7 {[%clk 0:01:36]}  Kxh7 {[%clk 0:02:09]} 17. hxg6+ {[%clk 0:01:37]}  Kg8 {[%clk 0:02:08]} 18. Ng5 {[%clk 0:01:30]}  N7f6 {[%clk 0:02:08]} 19. gxf7+ {[%clk 0:01:28]}  Raxf7 {[%clk 0:02:08]} 20. Nxf7 {[%clk 0:01:17]}  Rxf7 {[%clk 0:02:08]} 21. Bg5 {[%clk 0:01:18]}  Qf8 {[%clk 0:02:04]} 22. Bh4 {[%clk 0:01:15]}  Bh6 {[%clk 0:01:37]} 23. Bf3 {[%clk 0:00:54]}  Qg7 {[%clk 0:01:34]} 24. Re5 {[%clk 0:00:47]}  Ng4 {[%clk 0:01:15]} 25. Bxg4 {[%clk 0:00:41]}  Qxg4 {[%clk 0:01:15]} 26. Rae1 {[%clk 0:00:23]}  Bd7 {[%clk 0:01:16]} 27. R1e4 {[%clk 0:00:21]}  Qf3 {[%clk 0:01:12]} 28. Re2 {[%clk 0:00:15]}  Bg7 {[%clk 0:01:05]} 29. Rg5 {[%clk 0:00:14]}  e5 {[%clk 0:00:48]} 30. dxe5 {[%clk 0:00:14]}  Bf5 {[%clk 0:00:48]} 31. Qd2 {[%clk 0:00:12]}  Bh3 {[%clk 0:00:47]} 32. Rxg7+ {[%clk 0:00:05]}  Rxg7 {[%clk 0:00:45]} 0-1


[Site "https://www.chess.com"]

[Event "Titled Tuesday Blitz April 11 Late 2023"]
[White "Hakobyan, Aram"]
[Black "Holt, Conrad"]
[WhiteFideId "13306677"]
[BlackFideId "2034387"]
[WhiteElo "2584"]
[BlackElo "2592"]
[Result "1-0"]
[Round "04"]
[TimeControl "180+2"]
[Date "2023.04.11"]
[WhiteClock "0:00:22"]
[BlackClock "0:00:03"]

1. d4 {[%clk 0:03:00]}  d5 {[%clk 0:02:57]} 2. c4 {[%clk 0:03:01]}  c6 {[%clk 0:02:57]} 3. Nf3 {[%clk 0:03:01]}  Nf6 {[%clk 0:02:57]} 4. Nc3 {[%clk 0:03:02]}  dxc4 {[%clk 0:02:57]} 5. e4 {[%clk 0:03:03]}  b5 {[%clk 0:02:57]} 6. Qc2 {[%clk 0:03:03]}  Na6 {[%clk 0:02:51]} 7. a3 {[%clk 0:03:02]}  e6 {[%clk 0:02:48]} 8. Be2 {[%clk 0:03:03]}  Be7 {[%clk 0:02:47]} 9. O-O {[%clk 0:03:03]}  O-O {[%clk 0:02:46]} 10. Rd1 {[%clk 0:03:02]}  Nc7 {[%clk 0:02:44]} 11. Rb1 {[%clk 0:02:58]}  Bb7 {[%clk 0:02:42]} 12. b3 {[%clk 0:02:59]}  cxb3 {[%clk 0:02:40]} 13. Rxb3 {[%clk 0:02:59]}  Rb8 {[%clk 0:02:39]} 14. e5 {[%clk 0:03:00]}  Nd7 {[%clk 0:02:36]} 15. Ne4 {[%clk 0:03:00]}  Nd5 {[%clk 0:02:32]} 16. Nfg5 {[%clk 0:02:56]}  h6 {[%clk 0:02:25]} 17. Rh3 {[%clk 0:02:53]}  c5 {[%clk 0:02:16]} 18. dxc5 {[%clk 0:02:30]}  hxg5 {[%clk 0:01:59]} 19. Nf6+ {[%clk 0:02:13]}  N7xf6 {[%clk 0:01:58]} 20. exf6 {[%clk 0:02:13]}  g6 {[%clk 0:01:09]} 21. fxe7 {[%clk 0:02:10]}  Qxe7 {[%clk 0:01:10]} 22. c6 {[%clk 0:02:09]}  Ba8 {[%clk 0:00:59]} 23. Bb2 {[%clk 0:02:08]}  f6 {[%clk 0:00:59]} 24. Rh6 {[%clk 0:01:58]}  Nf4 {[%clk 0:00:54]} 25. Rd7 {[%clk 0:01:53]}  Qg7 {[%clk 0:00:40]} 26. Rxg7+ {[%clk 0:01:39]}  Kxg7 {[%clk 0:00:41]} 27. Rh3 {[%clk 0:01:38]}  Nxh3+ {[%clk 0:00:18]} 28. gxh3 {[%clk 0:01:38]}  Rbc8 {[%clk 0:00:14]} 29. Bf3 {[%clk 0:01:39]}  e5 {[%clk 0:00:13]} 30. Qc5 {[%clk 0:00:45]}  Rf7 {[%clk 0:00:12]} 31. Bc3 {[%clk 0:00:45]}  Bxc6 {[%clk 0:00:06]} 32. Bxc6 {[%clk 0:00:42]}  Rfc7 {[%clk 0:00:06]} 33. Bd2 {[%clk 0:00:30]}  Rxc6 {[%clk 0:00:06]} 34. Qe7+ {[%clk 0:00:31]}  Kg8 {[%clk 0:00:03]} 35. Qxa7 {[%clk 0:00:31]}  R8c7 {[%clk 0:00:03]} 36. Qb8+ {[%clk 0:00:31]}  Kg7 {[%clk 0:00:03]} 37. Qxb5 {[%clk 0:00:32]}  Rc2 {[%clk 0:00:03]} 38. Be3 {[%clk 0:00:29]}  R2c4 {[%clk 0:00:03]} 39. a4 {[%clk 0:00:28]}  Rh4 {[%clk 0:00:03]} 40. Kg2 {[%clk 0:00:28]}  Rf7 {[%clk 0:00:04]} 41. a5 {[%clk 0:00:28]}  e4 {[%clk 0:00:04]} 42. a6 {[%clk 0:00:28]}  Rh8 {[%clk 0:00:03]} 43. a7 {[%clk 0:00:29]}  Ra8 {[%clk 0:00:03]} 44. Qa6 {[%clk 0:00:21]}  Kh7 {[%clk 0:00:03]} 45. Bd4 {[%clk 0:00:21]}  Kg7 {[%clk 0:00:03]} 46. Qa5 {[%clk 0:00:20]}  Kg8 {[%clk 0:00:02]} 47. Qd5 {[%clk 0:00:20]}  Re8 {[%clk 0:00:02]} 48. a8=Q {[%clk 0:00:20]}  Rxa8 {[%clk 0:00:02]} 49. Qxa8+ {[%clk 0:00:21]}  Kg7 {[%clk 0:00:02]} 50. Qxe4 {[%clk 0:00:22]}  Kh7 {[%clk 0:00:02]} 51. Qd5 {[%clk 0:00:22]}  Kg7 {[%clk 0:00:03]} 52. Qxg5 {[%clk 0:00:22]} 1-0


[Site "https://www.chess.com"]

[Event "Titled Tuesday Blitz April 11 Late 2023"]
[White "Svane, Rasmus"]
[Black "Mikhailovsky, Vladimir"]
[WhiteFideId "4657101"]
[BlackFideId "34105414"]
[WhiteElo "2597"]
[BlackElo "2275"]
[Result "1/2-1/2"]
[Round "04"]
[TimeControl "180+2"]
[Date "2023.04.11"]
[WhiteClock "0:00:03"]
[BlackClock "0:00:03"]

1. Nf3 {[%clk 0:03:00]}  d6 {[%clk 0:02:59]} 2. d4 {[%clk 0:03:01]}  Nf6 {[%clk 0:02:59]} 3. Nc3 {[%clk 0:03:01]}  g6 {[%clk 0:03:00]} 4. e4 {[%clk 0:03:01]}  Nc6 {[%clk 0:03:01]} 5. d5 {[%clk 0:03:00]}  Ne5 {[%clk 0:03:00]} 6. Nxe5 {[%clk 0:03:00]}  dxe5 {[%clk 0:03:01]} 7. Bb5+ {[%clk 0:02:48]}  Bd7 {[%clk 0:03:01]} 8. Qe2 {[%clk 0:02:49]}  Bg7 {[%clk 0:03:00]} 9. O-O {[%clk 0:02:49]}  O-O {[%clk 0:03:01]} 10. Be3 {[%clk 0:02:45]}  Ne8 {[%clk 0:02:58]} 11. Bxd7 {[%clk 0:02:41]}  Qxd7 {[%clk 0:02:58]} 12. Qb5 {[%clk 0:02:32]}  Qxb5 {[%clk 0:02:55]} 13. Nxb5 {[%clk 0:02:33]}  a6 {[%clk 0:02:55]} 14. Na3 {[%clk 0:02:29]}  Nd6 {[%clk 0:02:56]} 15. f3 {[%clk 0:02:26]}  Rfe8 {[%clk 0:02:55]} 16. c4 {[%clk 0:02:25]}  e6 {[%clk 0:02:46]} 17. Rfd1 {[%clk 0:02:14]}  exd5 {[%clk 0:02:45]} 18. cxd5 {[%clk 0:02:07]}  f5 {[%clk 0:02:33]} 19. Bc5 {[%clk 0:02:06]}  Bf8 {[%clk 0:02:19]} 20. Bxd6 {[%clk 0:01:53]}  Bxd6 {[%clk 0:02:20]} 21. Rac1 {[%clk 0:01:53]}  fxe4 {[%clk 0:02:05]} 22. fxe4 {[%clk 0:01:53]}  Rf8 {[%clk 0:02:05]} 23. Rf1 {[%clk 0:01:44]}  b5 {[%clk 0:01:55]} 24. Rf3 {[%clk 0:01:30]}  Rxf3 {[%clk 0:01:51]} 25. gxf3 {[%clk 0:01:30]}  Kf7 {[%clk 0:01:51]} 26. Kg2 {[%clk 0:01:22]}  Ke7 {[%clk 0:01:51]} 27. Nb1 {[%clk 0:01:19]}  Kd7 {[%clk 0:01:49]} 28. Nd2 {[%clk 0:01:18]}  a5 {[%clk 0:01:34]} 29. Nb3 {[%clk 0:01:18]}  a4 {[%clk 0:00:53]} 30. Nc5+ {[%clk 0:01:18]}  Ke7 {[%clk 0:00:54]} 31. Nd3 {[%clk 0:01:16]}  Kd7 {[%clk 0:00:47]} 32. h4 {[%clk 0:01:09]}  Rf8 {[%clk 0:00:17]} 33. Kg3 {[%clk 0:01:03]}  Ke7 {[%clk 0:00:15]} 34. Kg4 {[%clk 0:01:00]}  h5+ {[%clk 0:00:12]} 35. Kg3 {[%clk 0:01:00]}  Rg8 {[%clk 0:00:12]} 36. Kf2 {[%clk 0:00:57]}  g5 {[%clk 0:00:11]} 37. Rg1 {[%clk 0:00:24]}  Kf6 {[%clk 0:00:08]} 38. Rh1 {[%clk 0:00:21]}  Rg6 {[%clk 0:00:07]} 39. Ke3 {[%clk 0:00:15]}  gxh4 {[%clk 0:00:05]} 40. Rxh4 {[%clk 0:00:14]}  Kg5 {[%clk 0:00:05]} 41. Rh1 {[%clk 0:00:14]}  Kh6 {[%clk 0:00:05]} 42. Kf2 {[%clk 0:00:13]}  Rg5 {[%clk 0:00:04]} 43. b3 {[%clk 0:00:12]}  axb3 {[%clk 0:00:04]} 44. axb3 {[%clk 0:00:12]}  Kg6 {[%clk 0:00:04]} 45. Kf1 {[%clk 0:00:10]}  Rg3 {[%clk 0:00:03]} 46. Kf2 {[%clk 0:00:08]}  Rg5 {[%clk 0:00:04]} 47. Rh2 {[%clk 0:00:08]}  Kh6 {[%clk 0:00:03]} 48. Ke3 {[%clk 0:00:08]}  Kg6 {[%clk 0:00:04]} 49. Ke2 {[%clk 0:00:09]}  Rg3 {[%clk 0:00:04]} 50. Kf2 {[%clk 0:00:07]}  Rg5 {[%clk 0:00:04]} 51. Rg2 {[%clk 0:00:07]}  h4 {[%clk 0:00:04]} 52. Rh2 {[%clk 0:00:07]}  Kh5 {[%clk 0:00:05]} 53. Rh1 {[%clk 0:00:06]}  Rg3 {[%clk 0:00:05]} 54. Rh2 {[%clk 0:00:04]}  Kg5 {[%clk 0:00:05]} 55. Rg2 {[%clk 0:00:03]}  Rxg2+ {[%clk 0:00:04]} 56. Kxg2 {[%clk 0:00:04]}  Kh5 {[%clk 0:00:02]} 57. Kh3 {[%clk 0:00:04]}  Kg5 {[%clk 0:00:03]} 58. Kh2 {[%clk 0:00:04]}  Kh5 {[%clk 0:00:03]} 59. Kg2 {[%clk 0:00:04]}  Kg5 {[%clk 0:00:04]} 60. Kh3 {[%clk 0:00:04]}  Kh5 {[%clk 0:00:04]} 61. f4 {[%clk 0:00:03]}  exf4 {[%clk 0:00:05]} 62. e5 {[%clk 0:00:03]}  Bf8 {[%clk 0:00:03]} 63. Nxf4+ {[%clk 0:00:04]}  Kg5 {[%clk 0:00:03]} 64. Ne6+ {[%clk 0:00:04]}  Kf5 {[%clk 0:00:03]} 65. Nxf8 {[%clk 0:00:03]}  Kxe5 {[%clk 0:00:04]} 66. Ne6 {[%clk 0:00:02]}  c6 {[%clk 0:00:02]} 67. Nc5 {[%clk 0:00:01]}  Kxd5 {[%clk 0:00:02]} 68. Na6 {[%clk 0:00:02]}  c5 {[%clk 0:00:03]} 69. Kxh4 {[%clk 0:00:02]}  c4 {[%clk 0:00:03]} 70. bxc4+ {[%clk 0:00:02]}  bxc4 {[%clk 0:00:03]} 71. Nb4+ {[%clk 0:00:03]}  Kd4 {[%clk 0:00:03]} 72. Na2 {[%clk 0:00:03]}  c3 {[%clk 0:00:03]} 73. Nxc3 {[%clk 0:00:03]} 1/2-1/2


[Site "https://www.chess.com"]

[Event "Titled Tuesday Blitz April 11 Late 2023"]
[White "Alekseenko, Kirill"]
[Black "Javakhadze, Zurab"]
[WhiteFideId "4135539"]
[BlackFideId "13603647"]
[WhiteElo "2683"]
[BlackElo "2381"]
[Result "1-0"]
[Round "04"]
[TimeControl "180+2"]
[Date "2023.04.11"]
[WhiteClock "0:00:13"]
[BlackClock "0:00:05"]

1. d4 {[%clk 0:03:00]}  d5 {[%clk 0:02:06]} 2. Nc3 {[%clk 0:02:59]}  e6 {[%clk 0:02:06]} 3. Bf4 {[%clk 0:03:00]}  Nf6 {[%clk 0:02:04]} 4. Nb5 {[%clk 0:03:00]}  Na6 {[%clk 0:02:04]} 5. e3 {[%clk 0:03:00]}  Be7 {[%clk 0:02:04]} 6. Nf3 {[%clk 0:03:00]}  O-O {[%clk 0:02:05]} 7. Be2 {[%clk 0:03:01]}  c6 {[%clk 0:01:58]} 8. Nc3 {[%clk 0:03:01]}  c5 {[%clk 0:01:58]} 9. O-O {[%clk 0:02:55]}  cxd4 {[%clk 0:01:58]} 10. exd4 {[%clk 0:02:55]}  Nb4 {[%clk 0:01:54]} 11. a3 {[%clk 0:02:45]}  Nc6 {[%clk 0:01:54]} 12. Bd3 {[%clk 0:02:45]}  Bd7 {[%clk 0:01:45]} 13. Re1 {[%clk 0:02:44]}  Qb6 {[%clk 0:01:45]} 14. Qd2 {[%clk 0:02:25]}  Rfc8 {[%clk 0:01:36]} 15. Ne5 {[%clk 0:02:22]}  Be8 {[%clk 0:01:16]} 16. Nxc6 {[%clk 0:02:17]}  Rxc6 {[%clk 0:01:15]} 17. Be5 {[%clk 0:02:06]}  Rac8 {[%clk 0:01:08]} 18. Rab1 {[%clk 0:01:57]}  Nd7 {[%clk 0:01:05]} 19. Bg3 {[%clk 0:01:52]}  Bf6 {[%clk 0:01:03]} 20. Ne2 {[%clk 0:01:50]}  g6 {[%clk 0:00:55]} 21. c3 {[%clk 0:01:50]}  a6 {[%clk 0:00:46]} 22. Nf4 {[%clk 0:01:49]}  Qd8 {[%clk 0:00:46]} 23. Bc2 {[%clk 0:01:28]}  Nb6 {[%clk 0:00:42]} 24. Nd3 {[%clk 0:01:29]}  Nc4 {[%clk 0:00:37]} 25. Qe2 {[%clk 0:01:28]}  Rb6 {[%clk 0:00:36]} 26. a4 {[%clk 0:01:21]}  a5 {[%clk 0:00:34]} 27. h3 {[%clk 0:01:17]}  h5 {[%clk 0:00:28]} 28. Bf4 {[%clk 0:01:10]}  Bg5 {[%clk 0:00:24]} 29. Qf3 {[%clk 0:01:02]}  Qf6 {[%clk 0:00:21]} 30. Re2 {[%clk 0:00:36]}  Bxf4 {[%clk 0:00:20]} 31. Nxf4 {[%clk 0:00:34]}  Rxb2 {[%clk 0:00:17]} 32. Rxb2 {[%clk 0:00:32]}  Nxb2 {[%clk 0:00:17]} 33. Bxg6 {[%clk 0:00:32]}  fxg6 {[%clk 0:00:17]} 34. Rxb2 {[%clk 0:00:33]}  g5 {[%clk 0:00:16]} 35. Ne2 {[%clk 0:00:23]}  Qxf3 {[%clk 0:00:16]} 36. gxf3 {[%clk 0:00:24]}  Bxa4 {[%clk 0:00:15]} 37. Rxb7 {[%clk 0:00:22]}  Bd1 {[%clk 0:00:16]} 38. Kf1 {[%clk 0:00:18]}  a4 {[%clk 0:00:14]} 39. Ra7 {[%clk 0:00:19]}  Rb8 {[%clk 0:00:15]} 40. Ke1 {[%clk 0:00:16]}  Rb1 {[%clk 0:00:15]} 41. Kd2 {[%clk 0:00:16]}  Bb3 {[%clk 0:00:15]} 42. Ng3 {[%clk 0:00:16]}  Rb2+ {[%clk 0:00:12]} 43. Ke3 {[%clk 0:00:15]}  Ra2 {[%clk 0:00:06]} 44. Nxh5 {[%clk 0:00:15]}  a3 {[%clk 0:00:06]} 45. Nf6+ {[%clk 0:00:14]}  Kf8 {[%clk 0:00:06]} 46. f4 {[%clk 0:00:15]}  Bc4 {[%clk 0:00:05]} 47. fxg5 {[%clk 0:00:13]}  Re2+ {[%clk 0:00:05]} 48. Kf3 {[%clk 0:00:13]} 1-0


[Site "https://www.chess.com"]